bitfinex/quotes_ETHUSD_20240703
["timestamp","ask_amount","ask_price","bid_price","bid_amount"]
[1719999520774,3.0,3351.8,3351.4,1.0]
[1719999520970,0.06811895,3351.5,3351.4,1.0]
[1719999521174,3.0,3351.8,3351.4,1.0]
[1719999521331,0.06811895,3351.5,3351.4,1.0]
[1719999521528,3.0,3351.8,3351.4,1.0]
[1719999522039,0.60814884,3351.7,3351.4,1.0]
[1719999522363,0.06811895,3351.7,3351.4,1.0]
[1719999522764,3.30996258,3352.0,3351.4,1.0]
[1719999523096,0.5400971,3351.9,3351.4,1.0]
[1719999523384,0.5400971,3351.8,3351.4,1.0]
[1719999523687,0.5400971,3351.7,3351.4,1.0]
[1719999523839,0.5400971,3351.6,3351.4,1.0]
[1719999524279,0.06811895,3351.5,3351.4,1.0]
[1719999524647,3.30996258,3352.0,3351.4,1.0]
[1719999524849,0.06811895,3351.9,3351.4,1.0]
[1719999525471,0.54010542,3351.5,3351.4,1.0]
[1719999526164,0.60822437,3351.5,3351.4,1.0]
[1719999526677,0.60822437,3351.5,3351.2,0.992]
[1719999527043,0.60822437,3351.5,3351.2,1.992]
[1719999527244,0.60822437,3351.5,3351.2,0.992]
[1719999527574,6.98421895,3351.5,3351.0,1.992]
[1719999530300,6.98421895,3351.5,3351.0,1.0]
[1719999531171,6.98421895,3351.5,3351.0,1.992]
[1719999532005,0.06811895,3351.5,3351.0,1.992]
[1719999532370,3.0,3351.6,3351.2,1.0]
[1719999532604,0.06805992,3351.4,3351.2,1.0]
[1719999532900,0.06805992,3351.3,3351.2,1.0]
[1719999533323,3.0,3351.6,3351.2,1.0]
[1719999533484,0.06805992,3351.3,3351.2,1.0]
[1719999534009,3.0,3351.6,3351.2,1.0]
[1719999534196,0.60831,3351.5,3351.2,1.0]
[1719999534399,0.06805992,3351.5,3351.2,1.0]
[1719999534582,0.54026012,3351.4,3351.2,1.0]
[1719999534784,3.0,3351.6,3351.2,1.0]
[1719999534987,0.60831986,3351.5,3351.2,1.0]
[1719999535285,0.06805992,3351.5,3351.2,1.0]
[1719999536725,0.54027658,3351.4,3351.2,1.0]
[1719999536940,0.06805992,3351.5,3351.2,1.0]
[1719999537230,0.60835175,3351.4,3351.2,1.0]
[1719999537394,0.06805992,3351.4,3351.2,1.0]
[1719999537595,3.0,3351.6,3351.2,1.0]
[1719999537786,0.60834808,3351.5,3351.2,1.0]
[1719999538103,0.54028816,3351.4,3351.2,1.0]
[1719999538321,0.06805992,3351.5,3351.2,1.0]
[1719999538491,0.54029856,3351.4,3351.2,1.0]
[1719999538691,0.06805992,3351.4,3351.2,1.0]
[1719999539100,3.0,3351.6,3351.2,1.0]
[1719999539288,0.06805992,3351.3,3351.2,1.0]
[1719999539730,3.0,3351.6,3351.2,1.0]
[1719999540033,0.54029628,3351.5,3351.2,1.0]
[1719999540239,0.60835536,3351.4,3351.2,1.0]
[1719999540410,0.06805992,3351.4,3351.0,1.992]
[1719999540611,0.06805992,3351.4,3351.0,0.992]
[1719999540612,0.54033947,3351.3,3351.0,0.992]
[1719999540809,3.0,3351.6,3351.0,0.992]
[1719999541114,0.6083909,3351.5,3350.8,1.992]
[1719999541312,1.093,3351.3,3350.7,7.4312]
[1719999541547,1.093,3351.1,3350.4,0.992]
[1719999541753,0.54033098,3351.0,3350.4,0.992]
[1719999541924,0.54033098,3351.0,3350.3,8.4489]
[1719999542127,7.28573895,3350.9,3350.3,8.4489]
[1719999542325,3.54033098,3350.8,3350.3,1.0]
[1719999542536,1.63380733,3350.7,3350.2,0.992]
[1719999542858,1.093,3350.5,3350.2,0.992]
[1719999543018,0.06769106,3350.4,3350.2,0.992]
[1719999543219,1.093,3350.7,3350.2,0.992]
[1719999543419,0.60856545,3350.6,3350.2,0.992]
[1719999543755,0.54087439,3350.5,3350.2,0.992]
[1719999543964,0.06769106,3350.6,3350.2,0.992]
[1719999544121,0.54087438,3350.5,3350.2,0.992]
[1719999544313,0.06769106,3350.5,3350.2,0.992]
[1719999544719,3.0,3350.8,3350.2,0.992]
[1719999544981,0.06769106,3350.4,3350.2,0.992]
[1719999545128,3.0,3350.8,3350.2,0.992]
[1719999545434,0.54085477,3350.7,3350.2,0.992]
[1719999545632,0.06751982,3350.6,3350.3,1.0]
[1719999545838,3.0,3350.8,3350.3,1.0]
[1719999546033,0.60835196,3350.7,3350.3,1.0]
[1719999546238,0.06751982,3350.7,3350.3,1.0]
[1719999546460,3.0,3350.8,3350.3,1.0]
[1719999546619,0.60834464,3350.7,3350.3,1.0]
[1719999546826,0.06751982,3350.7,3350.3,1.0]
[1719999547121,3.0,3350.8,3350.3,1.0]
[1719999547364,0.06751982,3350.6,3350.3,1.0]
[1719999547662,0.0672017,3350.5,3350.3,1.0]
[1719999548092,3.0,3350.8,3350.3,1.0]
[1719999548267,0.6077146,3350.7,3350.3,1.0]
[1719999548468,0.06688331,3350.7,3350.3,1.0]
[1719999548646,3.0,3350.8,3350.3,1.0]
[1719999548983,0.60771288,3350.7,3350.3,1.0]
[1719999549184,0.06688331,3350.7,3350.3,1.0]
[1719999549590,3.0,3350.8,3350.5,1.0]
[1719999549762,0.06656461,3350.6,3350.5,1.0]
[1719999549957,3.0,3350.9,3350.7,1.0]
[1719999550160,0.54071677,3350.8,3350.7,1.0]
[1719999550465,3.0,3350.9,3350.7,1.0]
[1719999550662,0.54071869,3350.8,3350.7,0.55]
[1719999550853,3.0,3350.9,3350.7,0.55]
[1719999551866,0.54068711,3350.8,3350.7,0.55]
[1719999552068,3.0,3350.9,3350.7,0.55]
[1719999552259,0.54067815,3350.8,3350.7,0.55]
[1719999552660,0.60654745,3350.8,3350.7,0.55]
[1719999553386,0.06590689,3350.8,3350.7,2.49837]
[1719999553888,3.0,3351.2,3350.9,0.55]
[1719999554277,0.54040696,3351.1,3350.9,0.55]
[1719999554467,3.31008093,3351.4,3350.9,0.55]
[1719999554664,0.54039606,3351.3,3350.9,0.55]
[1719999554870,0.54039606,3351.2,3350.9,0.55]
[1719999555181,3.31008093,3351.4,3351.1,0.55]
[1719999555377,0.31008093,3351.4,3351.3,0.55]
[1719999555585,7.48,3351.7,3351.3,0.55]
[1719999555985,0.54015111,3351.6,3351.3,0.55]
[1719999556180,0.54015111,3351.5,3351.3,0.55]
[1719999556489,0.54019878,3351.4,3351.3,0.55]
[1719999558300,0.54020386,3351.4,3351.3,0.55]
[1719999558497,3.0,3351.6,3351.3,0.55]
[1719999558720,0.54020556,3351.5,3351.3,0.55]
[1719999559398,0.54020556,3351.5,3351.0,8.7814]
[1719999559791,0.54020556,3351.4,3351.0,8.7814]
[1719999559992,0.54020556,3351.3,3351.0,8.7814]
[1719999560190,3.0,3351.7,3351.0,8.7814]
[1719999560378,0.54024143,3351.6,3351.0,8.7814]
[1719999560578,0.54024143,3351.5,3351.0,8.7814]
[1719999560796,0.54024143,3351.4,3351.0,8.7814]
[1719999560992,0.54024143,3351.3,3351.0,8.7814]
[1719999561278,3.0,3351.7,3351.0,8.7814]
[1719999561478,0.54024206,3351.6,3351.2,0.55]
[1719999561705,3.0,3351.7,3351.2,0.55]
[1719999561895,0.54022617,3351.6,3351.2,0.55]
[1719999562106,0.54022617,3351.5,3351.2,0.55]
[1719999562307,0.54022617,3351.4,3351.2,0.55]
[1719999562615,0.54022617,3351.3,3351.2,0.55]
[1719999564119,7.48,3352.0,3351.6,7.6967]
[1719999564427,0.53996368,3351.9,3351.8,0.55]
[1719999564775,7.48,3352.5,3351.8,0.55]
[1719999564980,2.234337,3352.4,3351.8,0.55]
[1719999565280,7.48,3352.5,3351.8,0.55]
[1719999565528,3.53980137,3352.4,3351.8,0.55]
[1719999565730,0.53980137,3352.3,3351.8,0.55]
[1719999565881,0.53980137,3352.2,3351.8,0.55]
[1719999566083,0.53980137,3352.1,3351.8,0.55]
[1719999566397,0.53980137,3352.0,3351.8,0.55]
[1719999566606,3.0,3352.4,3351.8,0.55]
[1719999566785,0.53981852,3352.3,3351.8,0.55]
[1719999567112,3.0,3352.4,3351.8,0.55]
[1719999567113,0.53981852,3352.2,3351.8,0.55]
[1719999567319,0.53981852,3352.1,3351.8,0.55]
[1719999567479,0.53981852,3352.0,3351.8,0.55]
[1719999567676,0.06550223,3351.9,3351.8,0.55]
[1719999567921,3.0,3352.4,3351.8,0.55]
[1719999568220,0.06550223,3351.9,3351.8,0.55]
[1719999568720,4.69451953,3352.6,3351.8,0.55]
[1719999568920,0.06550223,3351.9,3351.8,0.55]
[1719999569120,6.09734267,3352.6,3351.8,0.55]
[1719999569295,0.06550223,3351.9,3351.8,0.55]
[1719999569496,6.09734267,3352.6,3351.8,0.55]
[1719999569692,0.60339852,3352.5,3352.0,0.55]
[1719999569921,0.53977295,3352.4,3352.0,0.55]
[1719999570097,0.53977295,3352.3,3352.0,0.55]
[1719999570293,0.53977295,3352.2,3352.0,0.55]
[1719999570642,0.06362557,3352.1,3352.0,0.55]
[1719999571139,0.06362557,3352.1,3352.0,1.542]
[1719999571327,10.53862314,3352.6,3352.0,1.542]
[1719999571524,0.06381737,3352.1,3352.0,1.542]
[1719999571726,10.53862314,3352.6,3352.0,1.542]
[1719999571926,0.53968039,3352.5,3352.3,6.8085]
[1719999572135,7.48,3352.9,3352.4,0.55]
[1719999572450,0.53951495,3352.8,3352.4,0.55]
[1719999572610,7.48,3352.9,3352.4,0.55]
[1719999572611,0.53951495,3352.7,3352.4,0.55]
[1719999572807,0.53951495,3352.6,3352.4,0.55]
[1719999573017,7.48,3352.9,3352.4,0.55]
[1719999573213,3.53950139,3352.8,3352.4,0.55]
[1719999573401,0.53950139,3352.7,3352.4,0.55]
[1719999573600,0.53950139,3352.6,3352.4,0.55]
[1719999573808,3.0,3352.8,3352.4,0.55]
[1719999574000,0.5394879,3352.7,3352.4,0.55]
[1719999574349,3.0,3352.8,3352.4,0.55]
[1719999574502,0.53948829,3352.7,3352.4,0.55]
[1719999574842,3.0,3352.8,3352.4,0.55]
[1719999575137,0.53948574,3352.7,3352.4,0.55]
[1719999575438,3.0,3352.8,3352.4,0.55]
[1719999575627,0.53951465,3352.7,3352.4,0.55]
[1719999575824,3.0,3352.8,3352.4,0.55]
[1719999576026,0.53951496,3352.7,3352.4,0.55]
[1719999576242,3.0,3352.8,3352.4,0.55]
[1719999576540,0.53951721,3352.7,3352.3,6.8085]
[1719999576736,3.0,3352.8,3352.3,6.8085]
[1719999576900,3.0,3352.8,3352.0,8.8654]
[1719999576901,0.53956752,3352.7,3352.0,8.8654]
[1719999577102,4.093,3352.8,3352.0,8.8654]
[1719999577103,4.40286815,3352.8,3352.0,8.8654]
[1719999577308,0.53962605,3352.7,3352.0,8.8654]
[1719999577510,1.40286815,3352.8,3352.0,8.8654]
[1719999577707,0.53962138,3352.7,3352.0,8.8654]
[1719999577920,0.53962138,3352.6,3352.0,8.8654]
[1719999578126,1.40286815,3352.8,3352.2,0.55]
[1719999578347,0.53960971,3352.7,3352.2,0.55]
[1719999578547,0.30986815,3352.8,3352.2,0.55]
[1719999581766,0.30986815,3352.8,3352.0,8.3154]
[1719999582079,0.30986815,3352.8,3352.0,9.4084]
[1719999582565,0.30986815,3352.8,3352.1,0.55]
[1719999582730,0.0638852,3352.7,3352.1,0.55]
[1719999582925,0.0638852,3352.7,3351.1,0.31130106]
[1719999582926,1.093,3352.2,3351.4,6.8607]
[1719999583129,4.093,3352.0,3351.1,1.542]
[1719999583377,1.093,3351.8,3351.1,0.992]
[1719999583577,1.093,3351.8,3350.9,1.542]
[1719999583784,0.60420641,3351.7,3350.9,0.992]
[1719999583986,1.15687047,3351.7,3350.7,8.7195]
[1719999584285,0.06387047,3351.7,3350.9,0.55]
[1719999584481,1.093,3351.8,3350.9,0.55]
[1719999584651,0.60433983,3351.7,3350.9,0.55]
[1719999584981,0.06394725,3351.7,3350.9,0.55]
[1719999586287,0.54039569,3351.6,3350.7,8.7195]
[1719999586496,0.06384397,3351.5,3350.9,0.55]
[1719999586662,1.093,3351.7,3350.9,0.55]
[1719999586872,0.06384102,3351.6,3350.8,1.093]
[1719999587457,3.37373578,3351.6,3350.8,1.093]
[1719999588252,3.37373578,3351.6,3350.9,0.55]
[1719999590161,3.0,3351.4,3350.5,1.542]
[1719999590351,4.63347761,3351.3,3350.5,1.542]
[1719999590547,4.15683806,3351.3,3350.5,1.542]
[1719999590752,3.06383806,3351.3,3350.5,2.635]
[1719999591665,0.54060424,3351.2,3350.5,2.635]
[1719999591851,3.0,3351.3,3350.5,2.635]
[1719999592053,0.60444633,3351.2,3350.5,2.635]
[1719999592298,0.06383806,3351.2,3350.5,2.635]
[1719999596971,0.54061088,3351.1,3350.5,2.635]
[1719999597168,0.06383806,3351.2,3350.5,2.635]
[1719999597370,0.06365803,3351.0,3350.5,2.635]
[1719999597573,3.0,3351.3,3350.5,2.635]
[1719999597801,0.06365803,3350.9,3350.5,2.635]
[1719999597970,3.30974067,3351.3,3350.5,2.635]
[1719999598162,0.06365803,3350.8,3350.7,0.55]
[1719999598490,0.06174253,3350.8,3350.7,0.55]
[1719999598660,3.30974067,3351.3,3350.7,0.55]
[1719999598860,0.60235283,3351.2,3350.7,0.55]
[1719999599060,0.5406103,3351.1,3350.7,0.55]
[1719999599286,3.30974067,3351.3,3350.7,0.55]
[1719999599456,0.6023535,3351.2,3350.7,0.55]
[1719999599653,0.54061097,3351.1,3350.7,0.55]
[1719999599855,3.30974067,3351.3,3350.7,0.55]
[1719999600058,0.60235278,3351.2,3350.7,0.55]
[1719999600258,0.54061025,3351.1,3350.7,0.55]
[1719999600694,0.06174253,3351.0,3350.7,0.55]
[1719999600900,3.30974067,3351.3,3350.7,0.55]
[1719999601103,0.60235156,3351.2,3350.7,0.55]
[1719999601306,0.54060903,3351.1,3350.7,0.55]
[1719999601518,3.30974067,3351.3,3350.5,1.542]
[1719999601519,4.40274067,3351.3,3350.5,1.542]
[1719999601697,0.60126993,3351.2,3350.5,1.542]
[1719999601899,7.95430073,3351.1,3350.5,1.542]
[1719999602113,3.0,3351.0,3350.5,1.542]
[1719999602508,0.0606692,3350.9,3350.3,0.55]
[1719999602678,0.0606692,3350.9,3350.1,8.8247]
[1719999602679,1.1536692,3350.9,3350.1,8.8247]
[1719999603079,0.5408008,3350.8,3350.1,8.8247]
[1719999603392,0.05972253,3350.7,3350.1,8.8247]
[1719999603793,1.093,3350.9,3350.1,8.8247]
[1719999604008,0.05972253,3350.6,3350.1,8.8247]
[1719999604209,1.093,3350.9,3350.1,8.8247]
[1719999604423,0.05972253,3350.5,3350.1,8.8247]
[1719999604723,1.093,3350.9,3350.1,8.8247]
[1719999604724,0.05972253,3350.4,3350.1,8.8247]
[1719999604889,3.0,3351.0,3350.1,8.8247]
[1719999605095,0.60050711,3350.9,3350.3,0.55]
[1719999605302,0.0596753,3350.9,3350.3,0.55]
[1719999607089,0.0596753,3350.9,3350.7,1.093]
[1719999607403,3.0,3351.4,3350.7,1.643]
[1719999607601,0.05959559,3350.8,3350.7,1.643]
[1719999607823,3.0,3351.4,3350.7,1.643]
[1719999608004,0.05959559,3350.8,3350.7,1.643]
[1719999608194,3.309692,3351.4,3350.7,1.643]
[1719999608401,0.05959559,3350.8,3350.7,1.643]
[1719999608607,3.0,3351.4,3350.7,1.643]
[1719999608803,0.05959559,3350.8,3350.7,1.643]
[1719999609038,3.0,3351.4,3350.7,1.643]
[1719999609217,0.05959559,3350.8,3350.7,1.093]
[1719999609418,3.0,3351.4,3350.7,1.093]
[1719999609617,0.05974318,3350.8,3350.7,1.093]
[1719999610107,3.0,3351.4,3350.7,1.093]
[1719999610304,0.05974318,3351.3,3350.7,1.643]
[1719999610840,0.05974318,3351.3,3350.7,0.55]
[1719999611037,0.05974318,3351.3,3350.6,0.992]
[1719999611340,0.05974318,3351.3,3350.7,0.55]
[1719999611719,0.05974318,3351.3,3350.4,7.8299]
[1719999611720,1.15274318,3351.3,3350.4,7.8299]
[1719999612042,1.15274318,3351.3,3350.5,0.55]
[1719999612351,0.54065044,3351.2,3350.5,0.55]
[1719999612516,0.05976088,3351.1,3350.5,0.55]
[1719999612706,1.093,3351.3,3350.5,0.55]
[1719999612900,0.60042503,3351.2,3350.5,0.55]
[1719999613230,0.36950946,3351.2,3350.5,0.55]
[1719999613738,1.093,3351.1,3350.4,6.8379]
[1719999613938,1.093,3351.1,3350.2,1.542]
[1719999614145,0.05969595,3351.0,3350.2,1.542]
[1719999614740,0.05969595,3351.0,3350.2,2.635]
[1719999614960,3.05969595,3351.0,3350.2,2.635]
[1719999617014,3.05969595,3351.0,3350.4,0.55]
[1719999619750,3.05969595,3351.0,3350.1,7.4698]
[1719999619950,0.54081995,3350.9,3350.1,9.0118]
[1719999620116,0.60042736,3350.8,3350.1,9.0118]
[1719999620322,0.60042736,3350.8,3350.1,10.1048]
[1719999620323,0.05960741,3350.8,3350.1,10.1048]
[1719999620643,3.0,3351.0,3350.1,10.1048]
[1719999620845,0.05958971,3350.7,3350.1,10.1048]
[1719999621145,0.05958971,3350.6,3350.3,0.55]
[1719999621653,3.0,3351.0,3350.3,0.55]
[1719999621820,0.05954541,3350.5,3350.3,0.55]
[1719999622015,3.0,3351.0,3350.3,0.55]
[1719999622217,0.05954541,3350.4,3350.3,0.55]
[1719999622748,5.00559798,3351.2,3350.7,0.55]
[1719999622958,0.60019201,3351.1,3350.7,0.55]
[1719999623138,0.5406525,3351.0,3350.7,0.55]
[1719999623465,0.05953362,3350.9,3350.7,0.55]
[1719999623665,0.5406525,3350.8,3350.7,0.55]
[1719999624365,0.60018612,3350.8,3350.5,0.55]
[1719999624572,0.05953362,3350.8,3350.5,0.55]
[1719999624734,0.54073873,3350.7,3350.5,0.55]
[1719999624934,0.05953362,3350.6,3350.2,1.093]
[1719999625155,4.40274858,3351.2,3350.2,1.093]
[1719999625156,6.0985103,3351.2,3350.2,1.643]
[1719999625365,6.0985103,3351.2,3350.1,7.4698]
[1719999625366,6.9612,3350.9,3350.1,7.4698]
[1719999625687,3.5407966,3350.8,3350.1,7.4698]
[1719999625972,0.5407966,3350.7,3350.1,8.0198]
[1719999626433,0.05953362,3350.6,3350.1,8.0198]
[1719999626634,0.5407966,3350.5,3350.1,8.0198]
[1719999627186,0.60033022,3350.4,3350.1,8.0198]
[1719999627366,0.5407966,3350.3,3350.1,8.0198]
[1719999627676,5.00574962,3350.8,3350.1,8.0198]
[1719999627677,3.30986473,3350.8,3350.1,8.0198]
[1719999627836,0.05953362,3350.2,3350.1,8.0198]
[1719999628034,5.00574783,3350.8,3350.1,8.0198]
[1719999628359,0.54087726,3350.7,3350.1,8.0198]
[1719999628564,0.60041088,3350.6,3350.1,8.0198]
[1719999628760,0.54087726,3350.5,3350.1,8.0198]
[1719999629140,5.00574783,3350.8,3350.1,8.0198]
[1719999629141,0.60041088,3350.4,3350.1,8.0198]
[1719999629337,0.54087726,3350.3,3350.1,8.0198]
[1719999629846,0.60041088,3350.2,3350.1,8.0198]
[1719999630976,0.60042286,3350.2,3350.1,8.0198]
[1719999631352,0.05953362,3350.2,3350.1,8.0198]
[1719999631547,0.60040856,3350.2,3350.1,8.0198]
[1719999631793,0.63082564,3350.2,3350.1,8.0198]
[1719999633065,0.63082564,3350.2,3350.1,9.1128]
[1719999633392,0.54087494,3350.2,3350.1,9.1128]
[1719999634174,1.69580714,3350.7,3350.3,0.55]
[1719999634385,0.54082647,3350.6,3350.3,0.55]
[1719999634722,0.63073584,3350.5,3350.3,0.55]
[1719999634908,0.54082647,3350.4,3350.3,0.55]
[1719999635489,0.63073584,3350.4,3350.3,0.55]
[1719999637303,0.08990937,3350.4,3350.3,0.55]
[1719999637716,0.54084095,3350.4,3350.3,0.55]
[1719999638004,0.0899064,3350.4,3350.3,0.55]
[1719999638212,0.63074735,3350.4,3350.3,0.55]
[1719999638419,0.54084095,3350.4,3350.3,0.55]
[1719999638633,2.2366654,3350.7,3350.3,0.55]
[1719999638838,0.0899064,3350.4,3350.3,0.55]
[1719999639046,0.54084095,3350.4,3350.1,8.0198]
[1719999639191,0.54084095,3350.3,3350.1,8.0198]
[1719999639699,0.63074735,3350.2,3350.1,0.55]
[1719999640029,0.54084095,3350.2,3350.1,0.55]
[1719999640231,0.54084095,3350.7,3350.1,0.55]
[1719999640540,0.54084095,3350.6,3350.1,0.55]
[1719999640745,0.54084095,3350.5,3350.1,0.55]
[1719999641328,0.63072079,3350.4,3350.1,0.55]
[1719999641533,0.54084095,3350.3,3350.1,0.55]
[1719999642042,0.08987984,3350.2,3350.1,0.55]
[1719999642196,0.63072079,3350.2,3350.1,0.55]
[1719999642391,0.54084095,3350.2,3350.1,0.55]
[1719999642825,0.54084095,3350.7,3350.1,0.55]
[1719999643199,0.08987984,3350.6,3350.1,0.55]
[1719999643538,0.54084095,3350.5,3350.1,0.55]
[1719999643891,0.5408921,3350.4,3350.1,0.55]
[1719999644092,0.5408921,3350.3,3350.1,0.55]
[1719999644333,0.5408928,3350.2,3350.1,0.55]
[1719999644630,0.63077264,3350.2,3350.1,0.55]
[1719999645237,0.63077264,3350.2,3349.9,9.5081]
[1719999645450,0.63077264,3350.2,3349.9,8.4151]
[1719999645451,0.5408928,3350.1,3349.9,8.4151]
[1719999645596,0.5408928,3350.1,3349.9,9.5081]
[1719999645949,0.5408928,3350.0,3349.9,0.992]
[1719999646161,0.5408928,3350.0,3349.7,7.6792]
[1719999646337,0.5408928,3349.9,3349.7,7.6792]
[1719999646849,0.08985327,3349.8,3349.7,7.6792]
[1719999647151,0.63097897,3349.8,3349.7,7.6792]
[1719999647808,0.08985327,3349.8,3349.7,7.6792]
[1719999648015,3.0,3350.4,3349.7,7.6792]
[1719999648199,0.08985327,3349.8,3349.7,0.55]
[1719999648405,1.093,3350.1,3349.5,0.55]
[1719999648635,7.47932374,3350.0,3349.5,0.55]
[1719999648941,3.0,3349.9,3349.5,0.55]
[1719999649114,0.54112268,3349.8,3349.3,0.55]
[1719999649320,0.08974697,3349.8,3349.3,0.55]
[1719999649938,0.08974697,3349.8,3349.1,8.4073]
[1719999650729,0.54141633,3349.7,3349.3,0.55]
[1719999651246,0.08974697,3349.6,3349.3,0.55]
[1719999652118,3.0,3349.9,3349.3,0.55]
[1719999652303,0.08974697,3349.5,3349.3,0.55]
[1719999652500,0.54141921,3349.4,3349.3,0.55]
[1719999652831,0.63116618,3349.4,3349.3,0.55]
[1719999653642,0.08974697,3349.4,3349.3,0.55]
[1719999653828,4.69654728,3349.9,3349.3,0.55]
[1719999654169,0.08909514,3349.4,3349.3,0.55]
[1719999654320,0.54137945,3349.4,3349.3,0.55]
[1719999654649,0.08909514,3349.4,3349.3,0.55]
[1719999655048,0.54139034,3349.6,3349.3,0.55]
[1719999655256,0.08909514,3349.4,3349.3,0.55]
[1719999655442,3.0,3349.9,3349.5,0.55]
[1719999655645,0.54140255,3349.8,3349.5,0.55]
[1719999655865,0.54140255,3349.7,3349.5,0.55]
[1719999656167,0.54140255,3349.6,3349.5,0.55]
[1719999657323,0.54140255,3349.6,3349.5,10.1279]
[1719999657526,4.69632239,3350.2,3349.7,0.55]
[1719999657767,0.54108177,3350.1,3349.7,0.55]
[1719999657930,0.54108177,3350.0,3349.7,0.55]
[1719999658267,0.54108177,3349.9,3349.7,0.55]
[1719999658442,0.54108177,3349.8,3349.7,0.55]
[1719999658650,0.54108177,3350.1,3349.7,0.55]
[1719999658857,0.54108177,3350.0,3349.7,0.55]
[1719999659150,0.54108177,3349.9,3349.7,0.55]
[1719999659351,0.54108177,3349.8,3349.7,0.55]
[1719999659866,0.54108177,3350.1,3349.7,0.55]
[1719999660485,0.54108177,3350.1,3349.9,0.55]
[1719999660779,3.0,3350.5,3349.7,0.55]
[1719999660949,0.54112536,3350.4,3349.9,0.55]
[1719999661137,0.85103772,3350.4,3349.9,0.55]
[1719999661338,0.54114047,3350.3,3349.9,0.55]
[1719999661539,0.54114047,3350.2,3349.9,0.55]
[1719999663281,0.54114047,3350.1,3349.9,0.55]
[1719999663482,0.54114047,3350.0,3349.9,0.55]
[1719999663712,0.54112489,3350.0,3349.9,0.55]
[1719999663860,0.54112489,3350.0,3349.6,1.542]
[1719999664062,0.54119434,3349.9,3349.6,1.542]
[1719999664276,0.54119434,3349.8,3349.6,1.542]
[1719999664464,4.69626618,3350.3,3349.8,0.55]
[1719999664693,0.54114474,3350.2,3349.8,0.55]
[1719999664907,1.69626618,3350.3,3349.8,0.55]
[1719999664908,0.54114474,3350.1,3349.8,0.55]
[1719999665198,0.54114474,3350.0,3349.8,0.55]
[1719999665400,0.54114474,3349.9,3349.8,0.55]
[1719999667001,0.54113295,3349.9,3349.8,0.55]
[1719999668902,0.54113295,3349.9,3349.8,1.542]
[1719999672788,0.63018973,3349.9,3349.8,1.542]
[1719999673407,0.08905678,3349.9,3349.8,1.542]
[1719999673674,0.54111636,3349.9,3349.8,1.542]
[1719999673978,0.08905678,3349.9,3349.8,1.542]
[1719999674373,0.0860939,3349.9,3349.8,1.542]
[1719999674788,0.62724064,3349.9,3349.8,1.542]
[1719999675124,0.62724064,3349.9,3349.8,0.55]
[1719999675606,0.62724064,3349.9,3349.6,0.55]
[1719999675922,0.54114674,3349.8,3349.5,9.0349]
[1719999676274,3.0,3350.3,3349.5,9.0349]
[1719999676478,0.0860939,3349.7,3349.5,9.0349]
[1719999676673,4.69629639,3350.3,3349.7,0.55]
[1719999676887,0.54121577,3350.2,3349.7,0.55]
[1719999677213,0.54121577,3350.1,3349.7,0.55]
[1719999677386,0.54121577,3350.0,3349.7,0.55]
[1719999677593,4.69629639,3350.3,3349.7,0.55]
[1719999677594,0.54121577,3349.9,3349.7,0.55]
[1719999677913,0.54121577,3349.8,3349.7,0.55]
[1719999678075,0.54121577,3350.2,3349.7,0.55]
[1719999678276,0.54121577,3350.1,3349.7,0.55]
[1719999678507,0.54121577,3350.0,3349.5,9.0349]
[1719999678708,0.54121577,3349.9,3349.5,9.0349]
[1719999678917,0.54121577,3349.8,3349.5,9.0349]
[1719999679087,0.54121577,3349.7,3349.5,9.0349]
[1719999679418,3.0,3350.3,3349.5,9.0349]
[1719999679587,0.54121367,3350.2,3349.5,9.0349]
[1719999679807,4.69629035,3350.3,3349.5,9.0349]
[1719999679808,0.54121367,3350.1,3349.5,9.0349]
[1719999680003,0.54121367,3350.0,3349.5,9.0349]
[1719999680329,0.54121367,3349.9,3349.5,9.0349]
[1719999680490,0.54121367,3349.8,3349.5,9.0349]
[1719999680833,0.54121367,3349.7,3349.5,9.0349]
[1719999680980,0.54121367,3349.6,3349.5,9.0349]
[1719999681619,0.54121367,3350.2,3349.5,9.0349]
[1719999681991,0.54121367,3350.2,3349.7,0.55]
[1719999682905,3.0,3350.3,3349.7,0.55]
[1719999683082,0.54117299,3350.2,3349.7,0.55]
[1719999683276,0.54117299,3350.1,3349.7,0.55]
[1719999683482,0.54117299,3350.0,3349.7,0.55]
[1719999683700,0.54117299,3349.9,3349.7,0.55]
[1719999683914,0.54117299,3349.8,3349.7,6.4849]
[1719999684109,4.6962395,3350.3,3349.9,0.55]
[1719999684335,0.541097,3350.2,3349.9,0.55]
[1719999684527,0.541097,3350.1,3349.9,0.55]
[1719999684729,0.541097,3350.0,3349.9,0.55]
[1719999685739,0.541097,3350.2,3349.9,0.55]
[1719999685941,3.0,3350.3,3349.9,0.55]
[1719999686143,0.54112452,3350.2,3349.9,0.55]
[1719999686441,1.69617892,3350.3,3349.9,0.55]
[1719999686442,3.0,3350.3,3349.9,0.55]
[1719999686659,0.54113396,3350.1,3349.9,0.55]
[1719999686941,0.54113396,3350.0,3349.9,0.55]
[1719999687723,0.62723083,3350.0,3349.9,0.55]
[1719999689157,0.62723083,3350.0,3349.1,6.4012]
[1719999689325,1.093,3349.8,3349.1,5.4092]